[Event "Early-Titled-Tuesday-Blitz-May-14-2024"]
[Site "Chess.com"]
[Date "2024.05.14"]
[Round "3"]
[White "NanMKKhineHlyan"]
[Black "EvgenyBurmakin"]
[Result "1/2-1/2"]
[WhiteElo "1816"]
[BlackElo "2331"]
[TimeControl "180+1"]
[EndTime "8:31:04 PDT"]
[Termination "Game drawn by repetition"]

1. e4 {[%clk 0:03:00.9]} 1... c5 {[%clk 0:02:59.6]} 2. Nf3 {[%clk 0:02:58.4]}
2... d6 {[%clk 0:02:59.7]} 3. d4 {[%clk 0:02:56.8]} 3... cxd4 {[%clk 0:03:00.6]}
4. Nxd4 {[%clk 0:02:55.8]} 4... Nf6 {[%clk 0:03:01.3]} 5. Nc3 {[%clk 0:02:54.2]}
5... a6 {[%clk 0:03:01.8]} 6. Be3 {[%clk 0:02:52.5]} 6... e5 {[%clk 0:03:02.1]}
7. Nb3 {[%clk 0:02:51.4]} 7... Be6 {[%clk 0:03:02.3]} 8. Be2 {[%clk 0:02:50.5]}
8... Be7 {[%clk 0:03:02.5]} 9. O-O {[%clk 0:02:50.2]} 9... Nbd7 {[%clk
0:03:02.2]} 10. f4 {[%clk 0:02:50.1]} 10... exf4 {[%clk 0:02:56.7]} 11. Bxf4
{[%clk 0:02:49.3]} 11... Ne5 {[%clk 0:02:57.3]} 12. Nd4 {[%clk 0:02:43]} 12...
O-O {[%clk 0:02:32.7]} 13. Nxe6 {[%clk 0:02:42.3]} 13... fxe6 {[%clk 0:02:33.6]}
14. Bxe5 {[%clk 0:02:41.3]} 14... dxe5 {[%clk 0:02:34.5]} 15. Qe1 {[%clk
0:02:39.9]} 15... Qb6+ {[%clk 0:02:29.8]} 16. Kh1 {[%clk 0:02:38.1]} 16... Qxb2
{[%clk 0:02:17.6]} 17. Rb1 {[%clk 0:02:35.7]} 17... Qxc2 {[%clk 0:02:17.8]} 18.
Rxb7 {[%clk 0:02:30.3]} 18... Rac8 {[%clk 0:01:43.9]} 19. Rxe7 {[%clk
0:02:26.3]} 19... Qxc3 {[%clk 0:01:39.3]} 20. Bxa6 {[%clk 0:02:17.7]} 20... Qxe1
{[%clk 0:01:30.1]} 21. Rxe1 {[%clk 0:02:15.9]} 21... Rc2 {[%clk 0:01:21.2]} 22.
Rxe6 {[%clk 0:02:10]} 22... Nxe4 {[%clk 0:01:13.7]} 23. Rxe5 {[%clk 0:02:02.6]}
23... Nf2+ {[%clk 0:01:07.8]} 24. Kg1 {[%clk 0:02:00.2]} 24... Ng4 {[%clk
0:01:03.8]} 25. R5e2 {[%clk 0:01:55.8]} 25... Rc6 {[%clk 0:00:56]} 26. Bb5
{[%clk 0:01:53.1]} 26... Rc5 {[%clk 0:00:54.7]} 27. a4 {[%clk 0:01:51.8]} 27...
h6 {[%clk 0:00:55]} 28. h3 {[%clk 0:01:43.9]} 28... Nf6 {[%clk 0:00:54.6]} 29.
Re7 {[%clk 0:01:41]} 29... Rfc8 {[%clk 0:00:49.8]} 30. Rb7 {[%clk 0:01:34.7]}
30... Rc1 {[%clk 0:00:47.9]} 31. Rxc1 {[%clk 0:01:32.1]} 31... Rxc1+ {[%clk
0:00:48.8]} 32. Kf2 {[%clk 0:01:32.2]} 32... Ra1 {[%clk 0:00:44.6]} 33. Rb8+
{[%clk 0:01:25.5]} 33... Kf7 {[%clk 0:00:44.4]} 34. Ra8 {[%clk 0:01:20.9]} 34...
Ne4+ {[%clk 0:00:40.5]} 35. Kf3 {[%clk 0:01:18.8]} 35... Nc3 {[%clk 0:00:39.7]}
36. Bc4+ {[%clk 0:01:17.5]} 36... Kf6 {[%clk 0:00:40.1]} 37. a5 {[%clk
0:01:16.3]} 37... Na4 {[%clk 0:00:33.9]} 38. Kf2 {[%clk 0:01:02.8]} 38... g5
{[%clk 0:00:29.7]} 39. Ra6+ {[%clk 0:01:00.7]} 39... Kg7 {[%clk 0:00:25.8]} 40.
Ra7+ {[%clk 0:01:00]} 40... Kf6 {[%clk 0:00:25.6]} 41. Rf7+ {[%clk 0:00:59.4]}
41... Kg6 {[%clk 0:00:25.6]} 42. Ra7 {[%clk 0:00:53]} 42... Kf6 {[%clk
0:00:19.2]} 43. a6 {[%clk 0:00:52.6]} 43... Nc5 {[%clk 0:00:15.8]} 44. Rf7+
{[%clk 0:00:51.6]} 44... Kg6 {[%clk 0:00:15.4]} 45. a7 {[%clk 0:00:50.5]} 45...
Ne4+ {[%clk 0:00:13.9]} 46. Ke3 {[%clk 0:00:47.8]} 46... Nd6 {[%clk 0:00:14.4]}
47. Rc7 {[%clk 0:00:46.3]} 47... Nxc4+ {[%clk 0:00:13]} 48. Rxc4 {[%clk
0:00:45.8]} 48... Rxa7 {[%clk 0:00:13.7]} 49. Rc6+ {[%clk 0:00:45.9]} 49... Kg7
{[%clk 0:00:13.4]} 50. Rc2 {[%clk 0:00:38.6]} 50... Rf7 {[%clk 0:00:12.6]} 51.
Ke4 {[%clk 0:00:37.7]} 51... Rf6 {[%clk 0:00:12.7]} 52. Ke5 {[%clk 0:00:37.7]}
52... Kg6 {[%clk 0:00:13.3]} 53. Rd2 {[%clk 0:00:31.7]} 53... h5 {[%clk
0:00:12.3]} 54. Rd8 {[%clk 0:00:27.5]} 54... Rf2 {[%clk 0:00:09.6]} 55. Rg8+
{[%clk 0:00:26.9]} 55... Kh6 {[%clk 0:00:09.3]} 56. g4 {[%clk 0:00:24.7]} 56...
hxg4 {[%clk 0:00:09.7]} 57. hxg4 {[%clk 0:00:23.2]} 57... Rf4 {[%clk 0:00:10.3]}
58. Rh8+ {[%clk 0:00:21.6]} 58... Kg7 {[%clk 0:00:10]} 59. Rh2 {[%clk 0:00:20]}
59... Rxg4 {[%clk 0:00:10.1]} 60. Rf2 {[%clk 0:00:19.7]} 60... Rb4 {[%clk
0:00:09.1]} 61. Rf5 {[%clk 0:00:20.6]} 61... Rb5+ {[%clk 0:00:09]} 62. Ke6
{[%clk 0:00:21.2]} 62... Rxf5 {[%clk 0:00:08.1]} 63. Kxf5 {[%clk 0:00:22.1]}
63... Kh6 {[%clk 0:00:08.8]} 64. Kg4 {[%clk 0:00:22]} 64... Kg6 {[%clk
0:00:09.7]} 65. Kg3 {[%clk 0:00:22.4]} 65... Kf5 {[%clk 0:00:10.6]} 66. Kf3
{[%clk 0:00:22]} 66... g4+ {[%clk 0:00:11.5]} 67. Kg3 {[%clk 0:00:22.1]} 67...
Kg5 {[%clk 0:00:12.4]} 68. Kg2 {[%clk 0:00:22.4]} 68... Kf4 {[%clk 0:00:13.3]}
69. Kf2 {[%clk 0:00:22.6]} 69... Kg5 {[%clk 0:00:13.5]} 70. Kg3 {[%clk
0:00:22.6]} 70... Kh5 {[%clk 0:00:14.1]} 71. Kg2 {[%clk 0:00:22.5]} 71... Kh4
{[%clk 0:00:15]} 72. Kh2 {[%clk 0:00:21.5]} 72... g3+ {[%clk 0:00:15.9]} 73. Kg2
{[%clk 0:00:21.5]} 73... Kg4 {[%clk 0:00:16.4]} 74. Kg1 {[%clk 0:00:21.6]} 74...
Kg5 {[%clk 0:00:16.4]} 75. Kg2 {[%clk 0:00:21.6]} 75... Kf4 {[%clk 0:00:17.3]}
76. Kg1 {[%clk 0:00:21]} 76... Kg4 {[%clk 0:00:17.9]} 77. Kg2 {[%clk 0:00:21]}
77... Kh4 {[%clk 0:00:18.5]} 78. Kg1 {[%clk 0:00:20.7]} 78... Kh3 {[%clk
0:00:19.4]} 79. Kh1 {[%clk 0:00:20.5]} 79... Kg4 {[%clk 0:00:19.6]} 80. Kg2
{[%clk 0:00:20.5]} 80... Kf4 {[%clk 0:00:19.8]} 81. Kg1 {[%clk 0:00:20.8]} 81...
Kg4 {[%clk 0:00:20.2]} 82. Kg2 {[%clk 0:00:21]} 1/2-1/2

[Event "Early-Titled-Tuesday-Blitz-May-14-2024"]
[Site "Chess.com"]
[Date "2024.05.14"]
[Round "3"]
[White "kids2010"]
[Black "Oleksandr_Bortnyk"]
[Result "1/2-1/2"]
[WhiteElo "2781"]
[BlackElo "3060"]
[TimeControl "180+1"]
[EndTime "8:31:06 PDT"]
[Termination "Game drawn by repetition"]

1. d4 {[%clk 0:03:00.9]} 1... Nf6 {[%clk 0:02:58.7]} 2. c4 {[%clk 0:03:01]} 2...
b6 {[%clk 0:02:58.8]} 3. Nc3 {[%clk 0:02:59.7]} 3... Bb7 {[%clk 0:02:56]} 4. Qc2
{[%clk 0:02:59]} 4... g6 {[%clk 0:02:51.4]} 5. e4 {[%clk 0:02:59]} 5... d6
{[%clk 0:02:52]} 6. Bd3 {[%clk 0:02:50.8]} 6... Bg7 {[%clk 0:02:52]} 7. Nge2
{[%clk 0:02:48.9]} 7... O-O {[%clk 0:02:51]} 8. O-O {[%clk 0:02:49.3]} 8... Na6
{[%clk 0:02:49.4]} 9. a3 {[%clk 0:02:49.1]} 9... e5 {[%clk 0:02:40.1]} 10. d5
{[%clk 0:02:49]} 10... Nc5 {[%clk 0:02:40.2]} 11. b4 {[%clk 0:02:49.3]} 11...
Nxd3 {[%clk 0:02:40.5]} 12. Qxd3 {[%clk 0:02:50.2]} 12... a5 {[%clk 0:02:41]}
13. Rb1 {[%clk 0:02:49.7]} 13... axb4 {[%clk 0:02:40.8]} 14. axb4 {[%clk
0:02:50.6]} 14... Nd7 {[%clk 0:02:39.9]} 15. Be3 {[%clk 0:02:48.1]} 15... f5
{[%clk 0:02:40.1]} 16. f3 {[%clk 0:02:48.8]} 16... f4 {[%clk 0:02:35.8]} 17. Bf2
{[%clk 0:02:49.1]} 17... g5 {[%clk 0:02:35.4]} 18. Rfc1 {[%clk 0:02:47.2]} 18...
h5 {[%clk 0:02:35.3]} 19. c5 {[%clk 0:02:47.1]} 19... bxc5 {[%clk 0:02:35]} 20.
bxc5 {[%clk 0:02:48]} 20... Ba6 {[%clk 0:02:35.6]} 21. Qd1 {[%clk 0:02:45.2]}
21... dxc5 {[%clk 0:02:22.8]} 22. d6 {[%clk 0:02:43.6]} 22... c6 {[%clk
0:02:18.8]} 23. Ra1 {[%clk 0:02:26.9]} 23... g4 {[%clk 0:02:15.4]} 24. Na4
{[%clk 0:02:14.5]} 24... Qg5 {[%clk 0:02:10.2]} 25. Kh1 {[%clk 0:02:05.2]} 25...
g3 {[%clk 0:02:05.5]} 26. Nxc5 {[%clk 0:01:53.9]} 26... Nxc5 {[%clk 0:00:59.9]}
27. Bxc5 {[%clk 0:01:52.5]} 27... gxh2 {[%clk 0:00:55.8]} 28. d7 {[%clk
0:01:33.7]} 28... Rfb8 {[%clk 0:00:26.6]} 29. Bd6 {[%clk 0:01:14.9]} 29... Bxe2
{[%clk 0:00:19.8]} 30. Qxe2 {[%clk 0:01:13.4]} 30... Rxa1 {[%clk 0:00:19.5]} 31.
Rxa1 {[%clk 0:01:14.3]} 31... Rd8 {[%clk 0:00:19.7]} 32. Ra7 {[%clk 0:01:11.7]}
32... Kh7 {[%clk 0:00:12]} 33. Bc5 {[%clk 0:00:42.8]} 33... Rb8 {[%clk
0:00:11.9]} 34. Ra1 {[%clk 0:00:35.8]} 34... Bf6 {[%clk 0:00:04.8]} 35. Rd1
{[%clk 0:00:34.9]} 35... Rg8 {[%clk 0:00:04.5]} 36. Qa2 {[%clk 0:00:24]} 36...
Bd8 {[%clk 0:00:03.5]} 37. Qf7+ {[%clk 0:00:13.8]} 37... Rg7 {[%clk 0:00:04]}
38. Qf5+ {[%clk 0:00:14.3]} 38... Qxf5 {[%clk 0:00:02.5]} 39. exf5 {[%clk
0:00:15.2]} 39... Rf7 {[%clk 0:00:02.9]} 40. Rd6 {[%clk 0:00:15.8]} 40... Kg7
{[%clk 0:00:02.8]} 41. Kxh2 {[%clk 0:00:11]} 41... Rxf5 {[%clk 0:00:02.4]} 42.
Rxc6 {[%clk 0:00:11.4]} 42... Rf7 {[%clk 0:00:03.3]} 43. Rd6 {[%clk 0:00:11.3]}
43... Rf6 {[%clk 0:00:02.8]} 44. Rd5 {[%clk 0:00:11.5]} 44... Re6 {[%clk
0:00:03.2]} 45. Kh3 {[%clk 0:00:11.7]} 45... Kf7 {[%clk 0:00:03.1]} 46. Bb4
{[%clk 0:00:12.4]} 46... Rb6 {[%clk 0:00:01.3]} 47. Bc3 {[%clk 0:00:12.8]} 47...
Ke6 {[%clk 0:00:01.4]} 48. Rxe5+ {[%clk 0:00:12.8]} 48... Kxd7 {[%clk
0:00:02.3]} 49. Rxh5 {[%clk 0:00:13]} 49... Rc6 {[%clk 0:00:02.3]} 50. Be5
{[%clk 0:00:13.4]} 50... Rc5 {[%clk 0:00:02.2]} 51. Rh7+ {[%clk 0:00:13.8]}
51... Ke6 {[%clk 0:00:02.8]} 52. Bxf4 {[%clk 0:00:14.4]} 52... Rc2 {[%clk
0:00:02.6]} 53. g3 {[%clk 0:00:14.3]} 53... Kf5 {[%clk 0:00:02.6]} 54. Rh5+
{[%clk 0:00:14.3]} 54... Kg6 {[%clk 0:00:03]} 55. Kg4 {[%clk 0:00:14.9]} 55...
Bf6 {[%clk 0:00:03.2]} 56. Rh6+ {[%clk 0:00:15.4]} 56... Kg7 {[%clk 0:00:03.3]}
57. Rh1 {[%clk 0:00:16.1]} 57... Rc4 {[%clk 0:00:03.7]} 58. Re1 {[%clk
0:00:15.2]} 58... Kg6 {[%clk 0:00:03.6]} 59. Rd1 {[%clk 0:00:15.1]} 59... Be5
{[%clk 0:00:03.2]} 60. Rd5 {[%clk 0:00:13.5]} 60... Bc7 {[%clk 0:00:03]} 61. Rf5
{[%clk 0:00:13.2]} 61... Bd6 {[%clk 0:00:03]} 62. Rg5+ {[%clk 0:00:12.6]} 62...
Kf6 {[%clk 0:00:03.6]} 63. Rh5 {[%clk 0:00:13]} 63... Bxf4 {[%clk 0:00:03.3]}
64. gxf4 {[%clk 0:00:13.9]} 64... Ra4 {[%clk 0:00:02.7]} 65. Rh6+ {[%clk
0:00:14.5]} 65... Kg7 {[%clk 0:00:03.2]} 66. Re6 {[%clk 0:00:13.5]} 66... Ra5
{[%clk 0:00:03.1]} 67. f5 {[%clk 0:00:13.7]} 67... Ra3 {[%clk 0:00:03.6]} 68.
Re7+ {[%clk 0:00:12.6]} 68... Kf6 {[%clk 0:00:04]} 69. Re6+ {[%clk 0:00:13.3]}
69... Kf7 {[%clk 0:00:04.9]} 70. Rb6 {[%clk 0:00:14.2]} 70... Rc3 {[%clk
0:00:04.6]} 71. Kf4 {[%clk 0:00:14.5]} 71... Ra3 {[%clk 0:00:04.7]} 72. Kg5
{[%clk 0:00:10.4]} 72... Rxf3 {[%clk 0:00:04.7]} 73. Rb7+ {[%clk 0:00:10.9]}
73... Kg8 {[%clk 0:00:05.1]} 74. Kf6 {[%clk 0:00:11.3]} 74... Ra3 {[%clk
0:00:05.2]} 75. Rb8+ {[%clk 0:00:11.5]} 75... Kh7 {[%clk 0:00:05.9]} 76. Rb7+
{[%clk 0:00:10.7]} 76... Kg8 {[%clk 0:00:06]} 77. Rb8+ {[%clk 0:00:10.6]} 77...
Kh7 {[%clk 0:00:06.5]} 78. Rb6 {[%clk 0:00:06.3]} 78... Kg8 {[%clk 0:00:06.1]}
79. Kg6 {[%clk 0:00:06.6]} 79... Rg3+ {[%clk 0:00:06]} 80. Kf6 {[%clk
0:00:07.4]} 80... Ra3 {[%clk 0:00:06.7]} 81. Re6 {[%clk 0:00:07.5]} 81... Kf8
{[%clk 0:00:06.2]} 82. Rb6 {[%clk 0:00:07.9]} 82... Kg8 {[%clk 0:00:06.5]}
1/2-1/2

[Event "Early-Titled-Tuesday-Blitz-May-14-2024"]
[Site "Chess.com"]
[Date "2024.05.14"]
[Round "3"]
[White "wadsy27"]
[Black "Mikhail_Bryakin"]
[Result "0-1"]
[WhiteElo "2601"]
[BlackElo "2888"]
[TimeControl "180+1"]
[EndTime "8:31:07 PDT"]
[Termination "Mikhail_Bryakin won by resignation"]

1. Nf3 {[%clk 0:03:00.9]} 1... c5 {[%clk 0:02:58]} 2. g3 {[%clk 0:03:00.8]} 2...
Nf6 {[%clk 0:02:58]} 3. Bg2 {[%clk 0:03:01.3]} 3... Nc6 {[%clk 0:02:58.3]} 4. c4
{[%clk 0:02:59.9]} 4... g6 {[%clk 0:02:58.8]} 5. Nc3 {[%clk 0:02:58.9]} 5... Bg7
{[%clk 0:02:59.4]} 6. d4 {[%clk 0:02:59.1]} 6... cxd4 {[%clk 0:02:59.2]} 7. Nxd4
{[%clk 0:02:59.7]} 7... O-O {[%clk 0:03:00]} 8. O-O {[%clk 0:02:59.4]} 8... d6
{[%clk 0:03:00.6]} 9. Nxc6 {[%clk 0:02:59.7]} 9... bxc6 {[%clk 0:03:00.8]} 10.
Bxc6 {[%clk 0:03:00.3]} 10... Rb8 {[%clk 0:03:01.4]} 11. Bg2 {[%clk 0:03:00.3]}
11... Be6 {[%clk 0:02:59.5]} 12. b3 {[%clk 0:02:58.3]} 12... Qa5 {[%clk
0:02:51.4]} 13. Bd2 {[%clk 0:02:53.2]} 13... Qh5 {[%clk 0:02:50.8]} 14. e4
{[%clk 0:02:49.4]} 14... Bg4 {[%clk 0:02:50.6]} 15. f3 {[%clk 0:02:48.2]} 15...
Bh3 {[%clk 0:02:50.8]} 16. Qe2 {[%clk 0:02:45.8]} 16... Bxg2 {[%clk 0:02:48.5]}
17. Kxg2 {[%clk 0:02:45.5]} 17... Rfc8 {[%clk 0:02:45.7]} 18. Rac1 {[%clk
0:02:42.6]} 18... Qc5 {[%clk 0:02:43.5]} 19. Be3 {[%clk 0:02:42.2]} 19... Qa5
{[%clk 0:02:42.4]} 20. Rfd1 {[%clk 0:02:36.7]} 20... h5 {[%clk 0:02:39]} 21. h4
{[%clk 0:02:34]} 21... Qa6 {[%clk 0:02:16.5]} 22. Qd2 {[%clk 0:02:30.3]} 22...
Rb7 {[%clk 0:02:12.9]} 23. Bd4 {[%clk 0:02:09.7]} 23... Qc6 {[%clk 0:02:02.9]}
24. Nd5 {[%clk 0:02:06.4]} 24... Nxd5 {[%clk 0:02:00]} 25. cxd5 {[%clk
0:02:05.3]} 25... Qd7 {[%clk 0:02:00.7]} 26. Bxg7 {[%clk 0:02:01.4]} 26... Kxg7
{[%clk 0:02:01.6]} 27. Rxc8 {[%clk 0:02:01.3]} 27... Qxc8 {[%clk 0:02:01.9]} 28.
Rc1 {[%clk 0:02:01.9]} 28... Rc7 {[%clk 0:02:02.3]} 29. Rxc7 {[%clk 0:01:52.1]}
29... Qxc7 {[%clk 0:02:03.2]} 30. Qd4+ {[%clk 0:01:52.4]} 30... f6 {[%clk
0:02:03]} 31. Qc4 {[%clk 0:01:52.5]} 31... Qa5 {[%clk 0:02:02.8]} 32. Qc2 {[%clk
0:01:44.8]} 32... Kf7 {[%clk 0:01:59.2]} 33. Qb2 {[%clk 0:01:39]} 33... Qb5
{[%clk 0:01:51.1]} 34. b4 {[%clk 0:01:27.3]} 34... Qa4 {[%clk 0:01:48.5]} 35.
Qb3 {[%clk 0:01:20.2]} 35... Qb5 {[%clk 0:01:47.3]} 36. Kf2 {[%clk 0:01:16.2]}
36... Qb6+ {[%clk 0:01:47.8]} 37. Kg2 {[%clk 0:00:56.8]} 37... Qb5 {[%clk
0:01:48]} 38. Qb2 {[%clk 0:00:44.3]} 38... Qa4 {[%clk 0:01:48.4]} 39. Kf2 {[%clk
0:00:43.2]} 39... Qd1 {[%clk 0:01:45.4]} 40. Kg2 {[%clk 0:00:33.3]} 40... g5
{[%clk 0:01:39.1]} 41. hxg5 {[%clk 0:00:29.8]} 41... fxg5 {[%clk 0:01:40]} 42.
b5 {[%clk 0:00:27]} 42... h4 {[%clk 0:01:39.6]} 43. gxh4 {[%clk 0:00:26.5]}
43... gxh4 {[%clk 0:01:40.3]} 44. Qf2 {[%clk 0:00:25.5]} 44... Qb1 {[%clk
0:01:32.8]} 45. Qxa7 {[%clk 0:00:22.4]} 45... Qxb5 {[%clk 0:01:08.4]} 46. Qf2
{[%clk 0:00:22.2]} 46... Qa4 {[%clk 0:01:08.7]} 47. Kh3 {[%clk 0:00:21.9]} 47...
Qa3 {[%clk 0:01:06.4]} 48. Kxh4 {[%clk 0:00:21.1]} 48... Qc1 {[%clk 0:01:07.1]}
49. Kh3 {[%clk 0:00:20.2]} 49... Qh6+ {[%clk 0:01:07]} 50. Kg2 {[%clk
0:00:20.1]} 50... Qg5+ {[%clk 0:01:07.2]} 51. Kf1 {[%clk 0:00:19.9]} 51... Qc1+
{[%clk 0:01:07.5]} 52. Qe1 {[%clk 0:00:20.1]} 52... Qa3 {[%clk 0:01:05.4]} 53.
Qe2 {[%clk 0:00:20.1]} 53... Qc1+ {[%clk 0:01:06]} 54. Kf2 {[%clk 0:00:20.4]}
54... Qc5+ {[%clk 0:01:06.7]} 55. Qe3 {[%clk 0:00:20.4]} 55... Qc2+ {[%clk
0:01:06.9]} 56. Qe2 {[%clk 0:00:20.8]} 56... Qc5+ {[%clk 0:01:07.4]} 57. Kg2
{[%clk 0:00:21.3]} 57... Qa3 {[%clk 0:01:07.2]} 58. Qc2 {[%clk 0:00:21.1]} 58...
Qe3 {[%clk 0:01:07.4]} 59. a4 {[%clk 0:00:20.9]} 59... Qa3 {[%clk 0:01:06.8]}
60. Kf2 {[%clk 0:00:20.8]} 60... Qa1 {[%clk 0:01:04.9]} 61. Ke3 {[%clk
0:00:20.4]} 61... Qa3+ {[%clk 0:01:03.4]} 62. Kd4 {[%clk 0:00:20.2]} 62... Qxf3
{[%clk 0:01:02.5]} 63. Kc4 {[%clk 0:00:18]} 63... Qe3 {[%clk 0:00:57.6]} 64. Kb5
{[%clk 0:00:17.6]} 64... Qa7 {[%clk 0:00:56.7]} 65. a5 {[%clk 0:00:17]} 65...
Qb7+ {[%clk 0:00:57.3]} 66. Ka4 {[%clk 0:00:17.2]} 66... Qa6 {[%clk 0:00:57.5]}
67. Kb4 {[%clk 0:00:10.7]} 67... Qb7+ {[%clk 0:00:57.5]} 68. Ka4 {[%clk
0:00:10.5]} 68... Qa6 {[%clk 0:00:57.9]} 69. Qb3 {[%clk 0:00:10.2]} 69... Qf1
{[%clk 0:00:56.6]} 70. Qb4 {[%clk 0:00:10]} 70... Qd3 {[%clk 0:00:55.8]} 71. Qb5
{[%clk 0:00:07]} 71... Qxe4+ {[%clk 0:00:55.5]} 72. Ka3 {[%clk 0:00:07.2]} 72...
Qe3+ {[%clk 0:00:55.1]} 73. Kb4 {[%clk 0:00:07.6]} 73... Qd4+ {[%clk 0:00:55.3]}
74. Qc4 {[%clk 0:00:07.9]} 74... Qb2+ {[%clk 0:00:55.5]} 75. Ka4 {[%clk
0:00:08.3]} 75... Kf6 {[%clk 0:00:45.5]} 76. a6 {[%clk 0:00:08.5]} 76... Qb6
{[%clk 0:00:46.2]} 77. Qb5 {[%clk 0:00:08.1]} 77... Qf2 {[%clk 0:00:41.1]} 78.
Ka5 {[%clk 0:00:06.9]} 78... Qa7 {[%clk 0:00:41.8]} 79. Qb6 {[%clk 0:00:06.8]}
79... Qa8 {[%clk 0:00:42.3]} 80. Qc6 {[%clk 0:00:06.9]} 80... Qa7 {[%clk
0:00:42.1]} 81. Qb6 {[%clk 0:00:06.9]} 81... Qa8 {[%clk 0:00:42.6]} 82. a7
{[%clk 0:00:07.2]} 82... Qxd5+ {[%clk 0:00:42.8]} 83. Qb5 {[%clk 0:00:07.7]}
83... Qa8 {[%clk 0:00:40.2]} 84. Ka6 {[%clk 0:00:07.6]} 84... Qc8+ {[%clk
0:00:38.4]} 85. Qb7 {[%clk 0:00:07.1]} 85... Qc4+ {[%clk 0:00:38.4]} 86. Kb6
{[%clk 0:00:07.8]} 86... Qc5+ {[%clk 0:00:38.8]} 87. Ka6 {[%clk 0:00:07.9]}
87... Qa3+ {[%clk 0:00:36.9]} 88. Kb5 {[%clk 0:00:06.4]} 88... Qc5+ {[%clk
0:00:37.2]} 89. Ka4 {[%clk 0:00:06.7]} 89... Qd4+ {[%clk 0:00:36.3]} 90. Ka3
{[%clk 0:00:07.1]} 90... Qa1+ {[%clk 0:00:35.4]} 91. Kb3 {[%clk 0:00:04.7]}
91... Qb1+ {[%clk 0:00:35.8]} 0-1

[Event "Early-Titled-Tuesday-Blitz-May-14-2024"]
[Site "Chess.com"]
[Date "2024.05.14"]
[Round "3"]
[White "santosalberto1987"]
[Black "MrLion3000"]
[Result "1/2-1/2"]
[WhiteElo "2577"]
[BlackElo "2764"]
[TimeControl "180+1"]
[EndTime "8:31:08 PDT"]
[Termination "Game drawn by repetition"]

1. e4 {[%clk 0:03:00.9]} 1... c5 {[%clk 0:02:59.9]} 2. Nf3 {[%clk 0:03:00.8]}
2... Nc6 {[%clk 0:02:59.4]} 3. Nc3 {[%clk 0:03:00.6]} 3... Nf6 {[%clk
0:02:58.8]} 4. d4 {[%clk 0:03:00.4]} 4... cxd4 {[%clk 0:02:58.7]} 5. Nxd4 {[%clk
0:03:01.3]} 5... e5 {[%clk 0:02:59.2]} 6. Ndb5 {[%clk 0:03:01.4]} 6... d6 {[%clk
0:02:59.2]} 7. Bg5 {[%clk 0:03:01.8]} 7... a6 {[%clk 0:02:58.8]} 8. Na3 {[%clk
0:03:02.4]} 8... b5 {[%clk 0:02:59.4]} 9. Bxf6 {[%clk 0:03:02.8]} 9... gxf6
{[%clk 0:02:59.9]} 10. Nd5 {[%clk 0:03:03.4]} 10... f5 {[%clk 0:03:00.5]} 11. c3
{[%clk 0:03:03.8]} 11... Be6 {[%clk 0:03:00.6]} 12. exf5 {[%clk 0:03:03.8]}
12... Bxf5 {[%clk 0:02:59.7]} 13. Nc2 {[%clk 0:03:03.4]} 13... Bg7 {[%clk
0:02:58.5]} 14. Nce3 {[%clk 0:03:03.4]} 14... Be6 {[%clk 0:02:52.5]} 15. Bd3
{[%clk 0:03:03.2]} 15... O-O {[%clk 0:02:52.5]} 16. O-O {[%clk 0:03:00]} 16...
f5 {[%clk 0:02:52]} 17. a4 {[%clk 0:02:57.3]} 17... e4 {[%clk 0:02:51.6]} 18.
Nf4 {[%clk 0:02:56.8]} 18... Qc8 {[%clk 0:02:41.4]} 19. axb5 {[%clk 0:02:38.3]}
19... Ne5 {[%clk 0:02:37.5]} 20. Bc2 {[%clk 0:02:37.9]} 20... Bd7 {[%clk
0:02:12]} 21. Bb3+ {[%clk 0:02:30.7]} 21... Kh8 {[%clk 0:02:11.6]} 22. Qxd6
{[%clk 0:02:16.4]} 22... axb5 {[%clk 0:01:54]} 23. Rxa8 {[%clk 0:02:09.2]} 23...
Qxa8 {[%clk 0:01:54.9]} 24. Rd1 {[%clk 0:01:56.7]} 24... Re8 {[%clk 0:01:34.3]}
25. Nh5 {[%clk 0:01:40.4]} 25... Qb8 {[%clk 0:01:13.6]} 26. Nxg7 {[%clk
0:01:11.5]} 26... Qxd6 {[%clk 0:01:10.9]} 27. Rxd6 {[%clk 0:01:11.2]} 27... Kxg7
{[%clk 0:01:11.8]} 28. Nd5 {[%clk 0:01:08.5]} 28... Ra8 {[%clk 0:01:03]} 29. Nb6
{[%clk 0:01:03.1]} 29... Ra1+ {[%clk 0:01:01.1]} 30. Rd1 {[%clk 0:01:03.4]}
30... Rxd1+ {[%clk 0:00:56.9]} 31. Bxd1 {[%clk 0:01:04.3]} 31... Bc6 {[%clk
0:00:42.9]} 32. Be2 {[%clk 0:01:04.5]} 32... Kf6 {[%clk 0:00:41.8]} 33. c4
{[%clk 0:01:03.5]} 33... b4 {[%clk 0:00:40.5]} 34. Kf1 {[%clk 0:00:49.8]} 34...
Ke6 {[%clk 0:00:39.7]} 35. c5 {[%clk 0:00:49.9]} 35... f4 {[%clk 0:00:37.7]} 36.
Ke1 {[%clk 0:00:47.6]} 36... e3 {[%clk 0:00:23.8]} 37. fxe3 {[%clk 0:00:44.4]}
37... fxe3 {[%clk 0:00:24.7]} 38. g3 {[%clk 0:00:43.3]} 38... h6 {[%clk
0:00:24.5]} 39. Nc4 {[%clk 0:00:40.9]} 39... Nxc4 {[%clk 0:00:20.6]} 40. Bxc4+
{[%clk 0:00:41.8]} 40... Ke5 {[%clk 0:00:21.5]} 41. Ke2 {[%clk 0:00:31.5]} 41...
Ke4 {[%clk 0:00:18.4]} 42. h4 {[%clk 0:00:29.3]} 42... Bd7 {[%clk 0:00:17.2]}
43. Ba6 {[%clk 0:00:25.3]} 43... Bg4+ {[%clk 0:00:16.3]} 44. Ke1 {[%clk
0:00:25.5]} 44... Kd5 {[%clk 0:00:16.7]} 45. Be2 {[%clk 0:00:24.3]} 45... Be6
{[%clk 0:00:12.9]} 46. g4 {[%clk 0:00:22.4]} 46... Kxc5 {[%clk 0:00:13.1]} 47.
g5 {[%clk 0:00:22.9]} 47... hxg5 {[%clk 0:00:13.4]} 48. hxg5 {[%clk 0:00:23.8]}
48... Bf5 {[%clk 0:00:10.9]} 49. Bh5 {[%clk 0:00:22]} 49... Kc4 {[%clk
0:00:08.5]} 50. Bf7+ {[%clk 0:00:21.9]} 50... Kd3 {[%clk 0:00:03]} 51. g6 {[%clk
0:00:22.2]} 51... Kc2 {[%clk 0:00:02.7]} 52. g7 {[%clk 0:00:18.6]} 52... Bh7
{[%clk 0:00:03.6]} 53. b3 {[%clk 0:00:18]} 53... Kc3 {[%clk 0:00:02.9]} 54. g8=Q
{[%clk 0:00:18.1]} 54... Bxg8 {[%clk 0:00:02.7]} 55. Bxg8 {[%clk 0:00:19]} 55...
Kd3 {[%clk 0:00:03.3]} 56. Bc4+ {[%clk 0:00:19.1]} 56... Kc3 {[%clk 0:00:03.2]}
57. Ke2 {[%clk 0:00:20]} 57... Kd4 {[%clk 0:00:03.9]} 58. Bg8 {[%clk 0:00:19.5]}
58... Ke4 {[%clk 0:00:04.3]} 59. Bc4 {[%clk 0:00:19.2]} 59... Kd4 {[%clk
0:00:04.7]} 60. Bf7 {[%clk 0:00:18.1]} 60... Ke4 {[%clk 0:00:04.2]} 61. Be6
{[%clk 0:00:18.3]} 61... Kd4 {[%clk 0:00:03.7]} 62. Bc4 {[%clk 0:00:18.5]} 62...
Ke4 {[%clk 0:00:02.9]} 63. Bd3+ {[%clk 0:00:18.1]} 63... Kd4 {[%clk 0:00:03.2]}
64. Bc2 {[%clk 0:00:18.6]} 64... Kc3 {[%clk 0:00:03.5]} 65. Bd1 {[%clk 0:00:19]}
65... Kd4 {[%clk 0:00:03.9]} 66. Kf3 {[%clk 0:00:10.9]} 66... Kd3 {[%clk
0:00:03.6]} 67. Be2+ {[%clk 0:00:11.2]} 67... Kc3 {[%clk 0:00:02.1]} 68. Bc4
{[%clk 0:00:11.2]} 68... Kd4 {[%clk 0:00:02.7]} 69. Bb5 {[%clk 0:00:07.2]} 69...
Kc3 {[%clk 0:00:02.7]} 70. Bc4 {[%clk 0:00:06.5]} 70... Kd4 {[%clk 0:00:02.9]}
71. Bf7 {[%clk 0:00:05.4]} 71... Kd3 {[%clk 0:00:02.7]} 72. Bg6+ {[%clk
0:00:04.5]} 72... Kc3 {[%clk 0:00:02.2]} 73. Bf7 {[%clk 0:00:04.5]} 73... Kd3
{[%clk 0:00:02.6]} 74. Bc4+ {[%clk 0:00:04.7]} 74... Kd4 {[%clk 0:00:02.7]}
1/2-1/2